[Event "Early-Titled-Tuesday-Blitz-March-19-2024"]
[Site "Chess.com"]
[Date "2024.03.19"]
[Round "2"]
[White "IPAchess"]
[Black "AlexanderKing"]
[Result "0-1"]
[WhiteElo "2400"]
[BlackElo "2630"]
[TimeControl "180+1"]
[EndTime "8:17:13 PDT"]
[Termination "AlexanderKing won by resignation"]

1. d4 {[%clk 0:03:00.9]} 1... d5 {[%clk 0:03:00.1]} 2. c4 {[%clk 0:03:01.5]}
2... e6 {[%clk 0:03:00.8]} 3. Nf3 {[%clk 0:03:02.1]} 3... c5 {[%clk 0:03:01.2]}
4. cxd5 {[%clk 0:03:01.7]} 4... exd5 {[%clk 0:03:02.1]} 5. g3 {[%clk 0:03:02.4]}
5... Nc6 {[%clk 0:03:02.6]} 6. Bg2 {[%clk 0:03:02.7]} 6... Nf6 {[%clk
0:03:03.3]} 7. O-O {[%clk 0:03:03.2]} 7... Be7 {[%clk 0:03:04.1]} 8. dxc5 {[%clk
0:02:58.8]} 8... Bxc5 {[%clk 0:03:05]} 9. a3 {[%clk 0:02:59.3]} 9... Ne4 {[%clk
0:03:04.7]} 10. b4 {[%clk 0:02:56.4]} 10... Be7 {[%clk 0:03:05.1]} 11. Bb2
{[%clk 0:02:56]} 11... Bf6 {[%clk 0:03:04.6]} 12. Bxf6 {[%clk 0:02:56.3]} 12...
Qxf6 {[%clk 0:03:04.9]} 13. Nbd2 {[%clk 0:02:50.3]} 13... O-O {[%clk 0:03:04.2]}
14. Rc1 {[%clk 0:02:49.1]} 14... Nc3 {[%clk 0:02:45.7]} 15. Qe1 {[%clk
0:02:47.4]} 15... Re8 {[%clk 0:02:45.8]} 16. e3 {[%clk 0:02:46.8]} 16... d4
{[%clk 0:02:46.3]} 17. e4 {[%clk 0:02:44.4]} 17... d3 {[%clk 0:02:38.8]} 18. Kh1
{[%clk 0:02:23.9]} 18... Ne2 {[%clk 0:02:31.9]} 19. Rc5 {[%clk 0:02:13.8]} 19...
Bg4 {[%clk 0:02:09.9]} 20. Ng1 {[%clk 0:02:11]} 20... Nxg1 {[%clk 0:01:59.4]}
21. Kxg1 {[%clk 0:02:09.8]} 21... Be2 {[%clk 0:01:58.6]} 22. Qc1 {[%clk
0:02:04.3]} 22... Bxf1 {[%clk 0:01:55.9]} 23. Nxf1 {[%clk 0:02:04.7]} 23... Nd4
{[%clk 0:01:54.7]} 24. Qd2 {[%clk 0:02:04.2]} 24... Ne2+ {[%clk 0:01:52]} 25.
Kh1 {[%clk 0:02:01.6]} 25... Qxf2 {[%clk 0:01:51.8]} 26. Qe3 {[%clk 0:01:59.8]}
26... Qxe3 {[%clk 0:01:45.7]} 27. Nxe3 {[%clk 0:01:59.2]} 27... d2 {[%clk
0:01:42.8]} 28. Bf3 {[%clk 0:01:58.6]} 28... Nd4 {[%clk 0:01:27]} 29. Kg2 {[%clk
0:01:58.8]} 29... Nxf3 {[%clk 0:01:22.6]} 30. Kxf3 {[%clk 0:01:59.7]} 30... Rad8
{[%clk 0:01:23.4]} 31. Nd1 {[%clk 0:01:57.9]} 31... Rd3+ {[%clk 0:01:22.2]} 32.
Ke2 {[%clk 0:01:58.2]} 32... Rxa3 {[%clk 0:01:08.8]} 33. Kxd2 {[%clk 0:01:58.2]}
33... g6 {[%clk 0:01:09.1]} 34. Nc3 {[%clk 0:01:55.9]} 34... b6 {[%clk
0:01:01.7]} 35. Rc7 {[%clk 0:01:55.4]} 35... a5 {[%clk 0:00:55.8]} 36. bxa5
{[%clk 0:01:48.2]} 36... bxa5 {[%clk 0:00:52.7]} 37. Kd3 {[%clk 0:01:47.5]}
37... a4 {[%clk 0:00:46.8]} 38. Kd4 {[%clk 0:01:47]} 38... Ra8 {[%clk
0:00:37.2]} 39. e5 {[%clk 0:01:45.8]} 39... Ra1 {[%clk 0:00:36.1]} 40. Nd5
{[%clk 0:01:46.1]} 40... Rd1+ {[%clk 0:00:34.8]} 41. Ke4 {[%clk 0:01:44.9]}
41... Rxd5 {[%clk 0:00:33.8]} 42. Kxd5 {[%clk 0:01:44.3]} 42... a3 {[%clk
0:00:34.7]} 43. Rc1 {[%clk 0:01:44.7]} 43... a2 {[%clk 0:00:33.3]} 44. Ra1
{[%clk 0:01:45.3]} 44... Kf8 {[%clk 0:00:33.8]} 45. e6 {[%clk 0:01:43.8]} 45...
Ra5+ {[%clk 0:00:33.1]} 46. Kc4 {[%clk 0:01:41.6]} 46... fxe6 {[%clk 0:00:32.5]}
47. Kb4 {[%clk 0:01:41.7]} 47... Ra8 {[%clk 0:00:32.5]} 48. Kb3 {[%clk
0:01:41.9]} 48... Ke7 {[%clk 0:00:33]} 49. Rxa2 {[%clk 0:01:40.8]} 49... Rxa2
{[%clk 0:00:33.1]} 50. Kxa2 {[%clk 0:01:41.7]} 50... Kf6 {[%clk 0:00:33.6]} 51.
Kb2 {[%clk 0:01:42.5]} 51... Kf5 {[%clk 0:00:34.2]} 52. Kc2 {[%clk 0:01:43.2]}
52... Kg4 {[%clk 0:00:34.7]} 53. Kd3 {[%clk 0:01:43.9]} 53... Kh3 {[%clk
0:00:35.4]} 54. Ke4 {[%clk 0:01:44.5]} 54... Kxh2 {[%clk 0:00:35.9]} 55. g4
{[%clk 0:01:45.2]} 55... Kg3 {[%clk 0:00:35.8]} 56. g5 {[%clk 0:01:45.6]} 56...
Kg4 {[%clk 0:00:36.3]} 57. Ke5 {[%clk 0:01:46.2]} 57... Kxg5 {[%clk 0:00:36.7]}
0-1

[Event "Early-Titled-Tuesday-Blitz-March-19-2024"]
[Site "Chess.com"]
[Date "2024.03.19"]
[Round "2"]
[White "ZenBull"]
[Black "Mikhail_Bryakin"]
[Result "0-1"]
[WhiteElo "2310"]
[BlackElo "2757"]
[TimeControl "180+1"]
[EndTime "8:17:14 PDT"]
[Termination "Mikhail_Bryakin won by resignation"]

1. Nf3 {[%clk 0:03:00.9]} 1... b6 {[%clk 0:02:54.3]} 2. d3 {[%clk 0:02:56.5]}
2... Bb7 {[%clk 0:02:53]} 3. e4 {[%clk 0:02:56.7]} 3... c5 {[%clk 0:02:53.2]} 4.
Nbd2 {[%clk 0:02:56.9]} 4... d5 {[%clk 0:02:53.5]} 5. g3 {[%clk 0:02:52.5]} 5...
dxe4 {[%clk 0:02:46.3]} 6. dxe4 {[%clk 0:02:53]} 6... g6 {[%clk 0:02:46.1]} 7.
Bg2 {[%clk 0:02:53.1]} 7... Bg7 {[%clk 0:02:39.6]} 8. O-O {[%clk 0:02:52.7]}
8... Nc6 {[%clk 0:02:39.5]} 9. c3 {[%clk 0:02:51.2]} 9... Nh6 {[%clk 0:02:35.2]}
10. Re1 {[%clk 0:02:50.9]} 10... O-O {[%clk 0:02:32.7]} 11. h3 {[%clk
0:02:40.4]} 11... f6 {[%clk 0:02:32.3]} 12. Nc4 {[%clk 0:02:32.9]} 12... Nf7
{[%clk 0:02:32]} 13. Qxd8 {[%clk 0:02:27.9]} 13... Raxd8 {[%clk 0:02:27.3]} 14.
Be3 {[%clk 0:02:27.2]} 14... Nd6 {[%clk 0:02:23.7]} 15. Nxd6 {[%clk 0:02:22.9]}
15... Rxd6 {[%clk 0:02:24.6]} 16. Rad1 {[%clk 0:02:21.9]} 16... Rxd1 {[%clk
0:02:24.9]} 17. Rxd1 {[%clk 0:02:21.8]} 17... Rd8 {[%clk 0:02:25.8]} 18. Rxd8+
{[%clk 0:02:21.3]} 18... Nxd8 {[%clk 0:02:26.7]} 19. Nd2 {[%clk 0:02:20.4]}
19... Kf7 {[%clk 0:02:24.7]} 20. f3 {[%clk 0:02:15.2]} 20... f5 {[%clk
0:02:23.9]} 21. exf5 {[%clk 0:02:14.3]} 21... gxf5 {[%clk 0:02:24.8]} 22. f4
{[%clk 0:02:14]} 22... Bxg2 {[%clk 0:02:24.9]} 23. Kxg2 {[%clk 0:02:14.9]} 23...
Ke6 {[%clk 0:02:25]} 24. Kf3 {[%clk 0:02:14.5]} 24... Nc6 {[%clk 0:02:25.1]} 25.
Ke2 {[%clk 0:02:11.3]} 25... h5 {[%clk 0:02:20.5]} 26. Kf3 {[%clk 0:02:08.6]}
26... Bf6 {[%clk 0:02:18]} 27. Ke2 {[%clk 0:01:56.2]} 27... Na5 {[%clk 0:02:16]}
28. Kd3 {[%clk 0:01:51.1]} 28... Nb7 {[%clk 0:02:15.7]} 29. b3 {[%clk
0:01:48.2]} 29... Nd6 {[%clk 0:02:09.9]} 30. c4 {[%clk 0:01:45]} 30... Kd7
{[%clk 0:02:07]} 31. Nf3 {[%clk 0:01:42.9]} 31... e6 {[%clk 0:02:06.5]} 32. Nd2
{[%clk 0:01:39.4]} 32... Kc6 {[%clk 0:02:06.5]} 33. Bf2 {[%clk 0:01:38.6]} 33...
a6 {[%clk 0:02:04.5]} 34. Be3 {[%clk 0:01:36.4]} 34... b5 {[%clk 0:02:04.1]} 35.
cxb5+ {[%clk 0:01:36.2]} 35... axb5 {[%clk 0:02:04.1]} 36. Bf2 {[%clk
0:01:36.3]} 36... Kd5 {[%clk 0:02:03.9]} 37. Be3 {[%clk 0:01:36.2]} 37... c4+
{[%clk 0:02:03.7]} 38. bxc4+ {[%clk 0:01:35.9]} 38... bxc4+ {[%clk 0:02:04.4]}
39. Kc2 {[%clk 0:01:35.6]} 39... c3 {[%clk 0:02:04.9]} 40. Nb3 {[%clk
0:01:30.9]} 40... Ke4 {[%clk 0:02:05]} 41. Bf2 {[%clk 0:01:29.7]} 41... Kf3
{[%clk 0:01:54.8]} 42. Be1 {[%clk 0:01:29.5]} 42... Ne4 {[%clk 0:01:52.3]} 43.
a4 {[%clk 0:01:23.9]} 43... Ke2 {[%clk 0:01:23.4]} 44. Bxc3 {[%clk 0:01:00.6]}
44... Nxc3 {[%clk 0:01:00.6]} 45. a5 {[%clk 0:00:57.6]} 45... Nd5 {[%clk
0:01:01.1]} 46. a6 {[%clk 0:00:54.9]} 46... Nb4+ {[%clk 0:00:52]} 47. Kc1 {[%clk
0:00:54.4]} 47... Nxa6 {[%clk 0:00:52.9]} 0-1

[Event "Early-Titled-Tuesday-Blitz-March-19-2024"]
[Site "Chess.com"]
[Date "2024.03.19"]
[Round "2"]
[White "awesomevishesh"]
[Black "ChessAdvanceUSA"]
[Result "0-1"]
[WhiteElo "2625"]
[BlackElo "2446"]
[TimeControl "180+1"]
[EndTime "8:17:21 PDT"]
[Termination "ChessAdvanceUSA won on time"]

1. a3 {[%clk 0:02:59]} 1... d6 {[%clk 0:02:58]} 2. d4 {[%clk 0:02:56.7]} 2... g6
{[%clk 0:02:58.5]} 3. e4 {[%clk 0:02:54.5]} 3... Bg7 {[%clk 0:02:58.3]} 4. Nc3
{[%clk 0:02:51.8]} 4... Nc6 {[%clk 0:02:58.3]} 5. Be3 {[%clk 0:02:50.5]} 5... e5
{[%clk 0:02:58.1]} 6. d5 {[%clk 0:02:48]} 6... Nce7 {[%clk 0:02:58.3]} 7. Qd2
{[%clk 0:02:09.3]} 7... Nf6 {[%clk 0:02:54.6]} 8. f3 {[%clk 0:02:08.8]} 8... O-O
{[%clk 0:02:54.6]} 9. g4 {[%clk 0:02:08.8]} 9... c6 {[%clk 0:02:53.5]} 10. h4
{[%clk 0:02:07.2]} 10... h5 {[%clk 0:02:53.1]} 11. g5 {[%clk 0:01:55.7]} 11...
Nh7 {[%clk 0:02:52.4]} 12. O-O-O {[%clk 0:01:53.9]} 12... c5 {[%clk 0:02:49.1]}
13. Bh3 {[%clk 0:01:44.5]} 13... Bxh3 {[%clk 0:02:48]} 14. Nxh3 {[%clk
0:01:42.3]} 14... b5 {[%clk 0:02:48.5]} 15. Nxb5 {[%clk 0:01:39.9]} 15... Rb8
{[%clk 0:02:47.1]} 16. c4 {[%clk 0:01:33.4]} 16... a6 {[%clk 0:02:30.7]} 17. Nc3
{[%clk 0:01:33.1]} 17... Rb3 {[%clk 0:02:29.9]} 18. Qc2 {[%clk 0:01:29.5]} 18...
Qb6 {[%clk 0:02:21.7]} 19. Na4 {[%clk 0:01:24.9]} 19... Qb8 {[%clk 0:02:10.4]}
20. Rd3 {[%clk 0:01:10]} 20... Rxd3 {[%clk 0:02:09.1]} 21. Qxd3 {[%clk
0:01:10.1]} 21... Qc7 {[%clk 0:02:05.1]} 22. Bd2 {[%clk 0:01:08.8]} 22... Rb8
{[%clk 0:02:02.6]} 23. Kc2 {[%clk 0:00:53]} 23... Nf8 {[%clk 0:01:53]} 24. Rb1
{[%clk 0:00:45.9]} 24... Qd7 {[%clk 0:01:52.6]} 25. b3 {[%clk 0:00:44.3]} 25...
Qxh3 {[%clk 0:01:52.2]} 26. b4 {[%clk 0:00:30.2]} 26... Nd7 {[%clk 0:01:44.1]}
27. b5 {[%clk 0:00:21.7]} 27... axb5 {[%clk 0:01:43.6]} 28. Rxb5 {[%clk
0:00:19.3]} 28... Qxh4 {[%clk 0:01:42.4]} 29. Qb3 {[%clk 0:00:17.1]} 29... Rxb5
{[%clk 0:01:38]} 30. cxb5 {[%clk 0:00:17]} 30... Qf2 {[%clk 0:01:25.3]} 31. b6
{[%clk 0:00:16.8]} 31... c4 {[%clk 0:01:25.1]} 32. Qb5 {[%clk 0:00:14.4]} 32...
Nxb6 {[%clk 0:01:15.8]} 33. Nxb6 {[%clk 0:00:13.5]} 33... Qxf3 {[%clk
0:01:12.6]} 34. Qxc4 {[%clk 0:00:13.4]} 34... h4 {[%clk 0:01:11.4]} 35. a4
{[%clk 0:00:02.8]} 35... h3 {[%clk 0:01:11.5]} 36. Qc7 {[%clk 0:00:01.4]} 36...
Qxe4+ {[%clk 0:01:10.3]} 37. Kb2 {[%clk 0:00:01.2]} 37... Nxd5 {[%clk
0:01:09.1]} 0-1

[Event "Early-Titled-Tuesday-Blitz-March-19-2024"]
[Site "Chess.com"]
[Date "2024.03.19"]
[Round "2"]
[White "Rogarcia1"]
[Black "mary-sanna"]
[Result "1-0"]
[WhiteElo "2495"]
[BlackElo "2201"]
[TimeControl "180+1"]
[EndTime "8:17:21 PDT"]
[Termination "Rogarcia1 won on time"]

1. e4 {[%clk 0:03:00.9]} 1... c5 {[%clk 0:02:59.9]} 2. Nf3 {[%clk 0:02:59.9]}
2... Nc6 {[%clk 0:03:00.2]} 3. d4 {[%clk 0:02:58.4]} 3... cxd4 {[%clk
0:03:01.1]} 4. Nxd4 {[%clk 0:02:58.1]} 4... g6 {[%clk 0:03:00.6]} 5. c4 {[%clk
0:02:57.5]} 5... Bg7 {[%clk 0:02:59.6]} 6. Be3 {[%clk 0:02:57.7]} 6... d6 {[%clk
0:02:50.7]} 7. Nc3 {[%clk 0:02:57]} 7... Nf6 {[%clk 0:02:38.9]} 8. Be2 {[%clk
0:02:56.7]} 8... O-O {[%clk 0:02:38.3]} 9. f3 {[%clk 0:02:56.3]} 9... a5 {[%clk
0:02:23.5]} 10. Qd2 {[%clk 0:02:56]} 10... a4 {[%clk 0:02:17.5]} 11. a3 {[%clk
0:02:56.1]} 11... Qa5 {[%clk 0:02:17.4]} 12. O-O {[%clk 0:02:54.9]} 12... Nd7
{[%clk 0:02:16.3]} 13. Kh1 {[%clk 0:02:50.8]} 13... Nc5 {[%clk 0:02:15]} 14.
Nxc6 {[%clk 0:02:04]} 14... bxc6 {[%clk 0:02:15.9]} 15. Rad1 {[%clk 0:01:59.1]}
15... Rb8 {[%clk 0:01:55.3]} 16. Qc2 {[%clk 0:01:58.2]} 16... Rb3 {[%clk
0:01:48.5]} 17. Bd4 {[%clk 0:01:57]} 17... Be6 {[%clk 0:01:28.9]} 18. Na2 {[%clk
0:01:53.1]} 18... Bxd4 {[%clk 0:01:02.3]} 19. Rxd4 {[%clk 0:01:52.3]} 19... Qb6
{[%clk 0:00:59.7]} 20. Rd2 {[%clk 0:01:48.7]} 20... Nd7 {[%clk 0:00:44.9]} 21.
f4 {[%clk 0:01:44.5]} 21... f5 {[%clk 0:00:18.3]} 22. Bd3 {[%clk 0:01:35.8]}
22... Nc5 {[%clk 0:00:13.5]} 23. Nb4 {[%clk 0:01:29.2]} 23... fxe4 {[%clk
0:00:11.7]} 24. Bxe4 {[%clk 0:01:27.1]} 24... Nxe4 {[%clk 0:00:08.9]} 25. Qxe4
{[%clk 0:01:26.8]} 25... Rf6 {[%clk 0:00:07]} 26. Nd3 {[%clk 0:01:11.8]} 26...
Kg7 {[%clk 0:00:05]} 27. f5 {[%clk 0:01:08.9]} 27... gxf5 {[%clk 0:00:03.7]} 28.
Qf4 {[%clk 0:01:06]} 28... d5 {[%clk 0:00:01.6]} 29. Qg5+ {[%clk 0:01:03.7]}
29... Rg6 {[%clk 0:00:01.5]} 30. Qxe7+ {[%clk 0:01:03.5]} 30... Kh8 {[%clk
0:00:01.4]} 31. Ne5 {[%clk 0:00:55.2]} 1-0

[Event "Early-Titled-Tuesday-Blitz-March-19-2024"]
[Site "Chess.com"]
[Date "2024.03.19"]
[Round "2"]
[White "JaackCamel"]
[Black "Muslim_player_05"]
[Result "0-1"]
[WhiteElo "2202"]
[BlackElo "2497"]
[TimeControl "180+1"]
[EndTime "8:17:30 PDT"]
[Termination "Muslim_player_05 won on time"]

1. d4 {[%clk 0:02:39.2]} 1... Nf6 {[%clk 0:02:59]} 2. c4 {[%clk 0:02:38.6]} 2...
e6 {[%clk 0:02:58.8]} 3. Nc3 {[%clk 0:02:37.8]} 3... Bb4 {[%clk 0:02:58.1]} 4.
Qc2 {[%clk 0:02:37]} 4... b6 {[%clk 0:02:51.1]} 5. a3 {[%clk 0:02:36.1]} 5...
Bxc3+ {[%clk 0:02:50.8]} 6. Qxc3 {[%clk 0:02:35.7]} 6... Bb7 {[%clk 0:02:51.5]}
7. f3 {[%clk 0:02:33.3]} 7... c5 {[%clk 0:02:45]} 8. e4 {[%clk 0:02:19.3]} 8...
cxd4 {[%clk 0:02:32.8]} 9. Qxd4 {[%clk 0:02:18.8]} 9... Nc6 {[%clk 0:02:32.7]}
10. Qc3 {[%clk 0:02:08]} 10... Rc8 {[%clk 0:02:29.4]} 11. Bg5 {[%clk 0:02:01.6]}
11... h6 {[%clk 0:02:26.9]} 12. Bh4 {[%clk 0:01:58.8]} 12... d6 {[%clk
0:02:02.3]} 13. Rd1 {[%clk 0:01:57.6]} 13... Qe7 {[%clk 0:02:02.3]} 14. Ne2
{[%clk 0:01:45.9]} 14... Nxe4 {[%clk 0:01:47.6]} 15. Bxe7 {[%clk 0:01:36.7]}
15... Nxc3 {[%clk 0:01:47]} 16. Nxc3 {[%clk 0:01:32.7]} 16... Kxe7 {[%clk
0:01:46.6]} 17. Be2 {[%clk 0:01:24.6]} 17... Rhd8 {[%clk 0:01:43]} 18. Kf2
{[%clk 0:01:22.5]} 18... Na5 {[%clk 0:01:40.8]} 19. Rd4 {[%clk 0:01:11.4]} 19...
g5 {[%clk 0:01:27.9]} 20. h4 {[%clk 0:01:03.9]} 20... e5 {[%clk 0:01:27.4]} 21.
Rg4 {[%clk 0:00:43.5]} 21... f5 {[%clk 0:01:11.3]} 22. Rg3 {[%clk 0:00:36.9]}
22... g4 {[%clk 0:01:10.1]} 23. fxg4 {[%clk 0:00:19.6]} 23... f4 {[%clk
0:01:10.2]} 24. Rgh3 {[%clk 0:00:12.1]} 24... Nxc4 {[%clk 0:01:08.9]} 25. Bxc4
{[%clk 0:00:11.3]} 25... Rxc4 {[%clk 0:01:09.8]} 26. g5 {[%clk 0:00:11.3]} 26...
h5 {[%clk 0:01:07.9]} 27. Rd3 {[%clk 0:00:09.3]} 27... e4 {[%clk 0:01:05.6]} 28.
Nd5+ {[%clk 0:00:05]} 28... Ke6 {[%clk 0:00:47.5]} 29. Nxf4+ {[%clk 0:00:04.6]}
29... Kf5 {[%clk 0:00:47.1]} 30. Rd5+ {[%clk 0:00:01]} 30... Kxf4 {[%clk
0:00:37.1]} 0-1

[Event "Early-Titled-Tuesday-Blitz-March-19-2024"]
[Site "Chess.com"]
[Date "2024.03.19"]
[Round "2"]
[White "AlexeiShirov"]
[Black "maximnovik"]
[Result "0-1"]
[WhiteElo "2847"]
[BlackElo "2622"]
[TimeControl "180+1"]
[EndTime "8:17:33 PDT"]
[Termination "maximnovik won by resignation"]

1. e4 {[%clk 0:03:00.9]} 1... c6 {[%clk 0:02:58.7]} 2. d4 {[%clk 0:03:00.2]}
2... d5 {[%clk 0:02:58.7]} 3. e5 {[%clk 0:02:59.8]} 3... Bf5 {[%clk 0:02:58.6]}
4. h4 {[%clk 0:02:59.2]} 4... Qb6 {[%clk 0:02:58.7]} 5. g4 {[%clk 0:02:54]} 5...
Bd7 {[%clk 0:02:56.7]} 6. h5 {[%clk 0:02:53.6]} 6... c5 {[%clk 0:02:55.1]} 7.
Bh3 {[%clk 0:02:32.8]} 7... cxd4 {[%clk 0:02:48.5]} 8. Nf3 {[%clk 0:02:32.2]}
8... Nc6 {[%clk 0:02:48.2]} 9. O-O {[%clk 0:02:28.5]} 9... Nh6 {[%clk
0:02:40.7]} 10. Re1 {[%clk 0:02:03.3]} 10... Bxg4 {[%clk 0:02:09.9]} 11. Bxg4
{[%clk 0:02:00.7]} 11... Nxg4 {[%clk 0:02:10]} 12. e6 {[%clk 0:02:00.4]} 12...
f6 {[%clk 0:02:01.5]} 13. c3 {[%clk 0:01:43.4]} 13... dxc3 {[%clk 0:01:23.1]}
14. Qe2 {[%clk 0:01:42]} 14... d4 {[%clk 0:01:11.7]} 15. bxc3 {[%clk 0:01:39.5]}
15... d3 {[%clk 0:01:10.2]} 16. Qf1 {[%clk 0:01:36.3]} 16... O-O-O {[%clk
0:01:09.2]} 17. Nbd2 {[%clk 0:01:29]} 17... g6 {[%clk 0:01:09.2]} 18. Rb1 {[%clk
0:01:27.1]} 18... Qc7 {[%clk 0:01:01.7]} 19. Qh3 {[%clk 0:01:23.4]} 19... gxh5
{[%clk 0:00:59]} 20. Qxh5 {[%clk 0:01:19.5]} 20... Rg8 {[%clk 0:00:58.7]} 21.
Kf1 {[%clk 0:01:16]} 21... Bh6 {[%clk 0:00:54.6]} 22. Re4 {[%clk 0:01:11.1]}
22... Bxd2 {[%clk 0:00:49.3]} 23. Bxd2 {[%clk 0:01:09.4]} 23... Nge5 {[%clk
0:00:48]} 24. Bf4 {[%clk 0:01:04.4]} 24... d2 {[%clk 0:00:37.1]} 25. Rd1 {[%clk
0:01:01.3]} 25... Qa5 {[%clk 0:00:33.8]} 26. Nxe5 {[%clk 0:00:59.2]} 26... Nxe5
{[%clk 0:00:32.3]} 27. Bxe5 {[%clk 0:00:58.1]} 27... fxe5 {[%clk 0:00:25.3]} 28.
Qxe5 {[%clk 0:00:56.9]} 28... Qxe5 {[%clk 0:00:20.3]} 29. Rxe5 {[%clk
0:00:56.1]} 29... Rd6 {[%clk 0:00:20.8]} 30. Ke2 {[%clk 0:00:54.7]} 30... Rgd8
{[%clk 0:00:20.4]} 31. f4 {[%clk 0:00:50.3]} 31... Kc7 {[%clk 0:00:19.6]} 32. f5
{[%clk 0:00:49.2]} 32... Rd5 {[%clk 0:00:19.9]} 33. Rxd5 {[%clk 0:00:45.4]}
33... Rxd5 {[%clk 0:00:19.9]} 34. Rf1 {[%clk 0:00:44.8]} 34... d1=Q+ {[%clk
0:00:18.3]} 35. Rxd1 {[%clk 0:00:43.9]} 35... Rxd1 {[%clk 0:00:18.6]} 36. Kxd1
{[%clk 0:00:43.4]} 36... Kd6 {[%clk 0:00:19]} 0-1

[Event "Early-Titled-Tuesday-Blitz-March-19-2024"]
[Site "Chess.com"]
[Date "2024.03.19"]
[Round "2"]
[White "Kacparov"]
[Black "Kunalm64"]
[Result "1-0"]
[WhiteElo "2926"]
[BlackElo "2628"]
[TimeControl "180+1"]
[EndTime "8:17:35 PDT"]
[Termination "Kacparov won by resignation"]

1. e4 {[%clk 0:03:00.9]} 1... c6 {[%clk 0:02:59.4]} 2. d4 {[%clk 0:03:00.6]}
2... d5 {[%clk 0:02:59.8]} 3. e5 {[%clk 0:03:01.1]} 3... Bf5 {[%clk 0:02:59.6]}
4. Nf3 {[%clk 0:03:01.3]} 4... e6 {[%clk 0:02:59]} 5. Be2 {[%clk 0:03:01.8]}
5... Nd7 {[%clk 0:02:58.6]} 6. O-O {[%clk 0:03:01.9]} 6... h6 {[%clk 0:02:58.7]}
7. Be3 {[%clk 0:03:02.2]} 7... Ne7 {[%clk 0:02:58.6]} 8. Nbd2 {[%clk 0:03:02.6]}
8... a5 {[%clk 0:02:38]} 9. c4 {[%clk 0:03:02.1]} 9... dxc4 {[%clk 0:02:36.3]}
10. Nxc4 {[%clk 0:03:02]} 10... Nd5 {[%clk 0:02:35.9]} 11. Rc1 {[%clk
0:02:56.7]} 11... Be7 {[%clk 0:02:34.5]} 12. Qb3 {[%clk 0:02:32.6]} 12... b5
{[%clk 0:02:10.1]} 13. Ncd2 {[%clk 0:02:28]} 13... a4 {[%clk 0:02:06.1]} 14. Qd1
{[%clk 0:02:27.9]} 14... Rc8 {[%clk 0:02:06]} 15. a3 {[%clk 0:02:05.6]} 15...
O-O {[%clk 0:02:01.1]} 16. Nb1 {[%clk 0:02:00.9]} 16... Qb6 {[%clk 0:01:23.6]}
17. Nc3 {[%clk 0:01:53.9]} 17... Qb7 {[%clk 0:01:21.7]} 18. Qd2 {[%clk
0:01:49.2]} 18... Nxc3 {[%clk 0:01:15.2]} 19. Qxc3 {[%clk 0:01:44.7]} 19... c5
{[%clk 0:01:10.7]} 20. dxc5 {[%clk 0:01:43.5]} 20... Nxc5 {[%clk 0:01:08.3]} 21.
Bxc5 {[%clk 0:01:29.8]} 21... Rxc5 {[%clk 0:01:07.8]} 22. Qd2 {[%clk 0:01:23.6]}
22... Rxc1 {[%clk 0:01:04.5]} 23. Rxc1 {[%clk 0:01:23.5]} 23... Rd8 {[%clk
0:01:04.2]} 24. Qa5 {[%clk 0:01:21]} 24... Ra8 {[%clk 0:00:35.2]} 25. Qc7 {[%clk
0:01:12]} 25... Rb8 {[%clk 0:00:16.6]} 26. Nd4 {[%clk 0:01:00.1]} 26... Bg5
{[%clk 0:00:13.8]} 27. Qxb7 {[%clk 0:00:56.5]} 27... Rxb7 {[%clk 0:00:14.1]} 28.
Rc8+ {[%clk 0:00:53.5]} 28... Kh7 {[%clk 0:00:14]} 29. Bxb5 {[%clk 0:00:31.7]}
29... Bf4 {[%clk 0:00:13.9]} 30. Rc5 {[%clk 0:00:31.4]} 30... Bc1 {[%clk
0:00:07.8]} 31. Rxc1 {[%clk 0:00:30.4]} 1-0

[Event "Early-Titled-Tuesday-Blitz-March-19-2024"]
[Site "Chess.com"]
[Date "2024.03.19"]
[Round "2"]
[White "Keeper0416"]
[Black "BashirliSaadat"]
[Result "1-0"]
[WhiteElo "2576"]
[BlackElo "2361"]
[TimeControl "180+1"]
[EndTime "8:17:35 PDT"]
[Termination "Keeper0416 won by resignation"]

1. Nf3 {[%clk 0:03:00.9]} 1... Nf6 {[%clk 0:02:59.6]} 2. c4 {[%clk 0:03:01.1]}
2... g6 {[%clk 0:02:59.8]} 3. g3 {[%clk 0:02:58]} 3... Bg7 {[%clk 0:03:00.2]} 4.
Bg2 {[%clk 0:02:58.4]} 4... O-O {[%clk 0:03:00.7]} 5. O-O {[%clk 0:02:58.8]}
5... e6 {[%clk 0:03:00.9]} 6. d4 {[%clk 0:02:54.4]} 6... d5 {[%clk 0:03:01.3]}
7. b3 {[%clk 0:02:55]} 7... c6 {[%clk 0:02:59.4]} 8. Bb2 {[%clk 0:02:55]} 8...
Ne4 {[%clk 0:02:59]} 9. e3 {[%clk 0:02:44.7]} 9... Nd7 {[%clk 0:02:58]} 10. Nfd2
{[%clk 0:02:41.6]} 10... Nxd2 {[%clk 0:02:56]} 11. Nxd2 {[%clk 0:02:40.9]} 11...
b6 {[%clk 0:02:55.5]} 12. Qe2 {[%clk 0:02:40.7]} 12... Bb7 {[%clk 0:02:55.3]}
13. Rfc1 {[%clk 0:02:41.2]} 13... Nf6 {[%clk 0:02:54.6]} 14. e4 {[%clk
0:02:40.2]} 14... dxe4 {[%clk 0:02:52.9]} 15. Nxe4 {[%clk 0:02:40.9]} 15... Nxe4
{[%clk 0:02:52.9]} 16. Qxe4 {[%clk 0:02:40.4]} 16... Rb8 {[%clk 0:02:50.8]} 17.
c5 {[%clk 0:02:38.2]} 17... Re8 {[%clk 0:02:40]} 18. h4 {[%clk 0:02:32.3]} 18...
bxc5 {[%clk 0:02:39.2]} 19. Rxc5 {[%clk 0:02:33.2]} 19... Bf8 {[%clk 0:02:38.6]}
20. Qf4 {[%clk 0:01:13.5]} 20... Bd6 {[%clk 0:02:06.4]} 21. Qe3 {[%clk
0:01:05.4]} 21... Bxc5 {[%clk 0:01:59.2]} 22. dxc5 {[%clk 0:01:06.3]} 22... e5
{[%clk 0:01:58]} 23. f4 {[%clk 0:00:58.1]} 23... exf4 {[%clk 0:01:18.2]} 24.
Qxf4 {[%clk 0:00:58.5]} 24... Qe7 {[%clk 0:01:08.4]} 25. Kh2 {[%clk 0:00:39.7]}
25... f5 {[%clk 0:00:27.6]} 26. Qd4 {[%clk 0:00:36.4]} 26... Rf8 {[%clk
0:00:15.2]} 27. Re1 {[%clk 0:00:30.3]} 27... Rbd8 {[%clk 0:00:03.8]} 28. Qh8+
{[%clk 0:00:29.2]} 28... Kf7 {[%clk 0:00:04.6]} 29. Qg7+ {[%clk 0:00:29.9]} 1-0